bitfinex/quotes_ETHUSD_20241109
["timestamp","ask_amount","ask_price","bid_price","bid_amount"]
[1731120792460,0.55,2975.0,2974.6,170.00511291]
[1731120792673,1.24213067,2975.0,2974.6,170.00511291]
[1731120793043,0.69213067,2974.9,2974.6,170.00511291]
[1731120794371,1.51683067,2974.9,2974.6,170.00511291]
[1731120796365,0.69213067,2974.9,2974.6,170.00511291]
[1731120797267,0.69213067,2974.8,2974.6,170.00511291]
[1731120799371,2.00980326,2974.8,2974.6,170.00511291]
[1731120801467,2.00980326,2974.8,2974.6,171.61094417]
[1731120801868,0.69213067,2974.8,2974.7,0.7612]
[1731120802170,0.69213067,2974.9,2974.7,0.7612]
[1731120802339,0.69213067,2974.8,2974.7,0.7612]
[1731120802540,0.69213067,2974.8,2974.7,4.21722212]
[1731120803172,0.69213067,2974.9,2974.7,4.21722212]
[1731120803342,0.69213067,2974.8,2974.7,4.21722212]
[1731120803976,0.69213067,2974.8,2974.6,171.61094417]
[1731120804176,0.69213067,2974.8,2974.6,170.00511291]
[1731120805175,2.00980326,2974.8,2974.6,170.00511291]
[1731120807379,0.69213067,2974.7,2974.6,170.00511291]
[1731120807546,2.00980326,2974.8,2974.6,170.00511291]
[1731120807747,2.01973067,2974.7,2974.6,170.0]
[1731120807948,1.76515993,2974.7,2974.6,170.0]
[1731120808172,3.14942128,2974.7,2974.6,170.0]
[1731120808342,1.76515993,2974.7,2974.6,170.0]
[1731120808546,3.16556199,2974.7,2974.6,170.0]
[1731120809257,2.72800206,2974.7,2974.6,170.0]
[1731120809470,1.6002148,2974.7,2974.6,170.0]
[1731120809669,1.60024323,2974.7,2974.6,170.0]
[1731120811982,0.55,2974.7,2974.6,170.0]
[1731120813060,1.86767259,2974.7,2974.6,170.0]
[1731120813449,2.91856565,2974.7,2974.6,170.0]
[1731120815683,1.86767259,2974.7,2974.6,170.0]
[1731120816045,1.31767259,2974.7,2974.6,170.0]
[1731120816260,14.13167697,2975.1,2974.6,170.0]
[1731120816261,0.70061473,2975.1,2974.9,0.00511291]
[1731120816479,0.70061473,2975.2,2975.0,0.7642]
[1731120816682,0.70061473,2975.3,2975.0,0.7642]
[1731120817481,0.70061473,2975.4,2975.2,0.00511291]
[1731120818817,0.70061473,2975.5,2975.2,0.00511291]
[1731120821445,0.70061473,2975.6,2975.2,0.00511291]
[1731120823814,0.70061473,2975.6,2975.3,0.7686]
[1731120824313,0.70061473,2975.8,2975.3,0.7686]
[1731120824608,1.3373,2975.7,2975.3,0.7686]
[1731120824774,2.03791473,2975.7,2975.3,0.7686]
[1731120824970,1.3373,2975.7,2975.3,0.7686]
[1731120825506,2.03791473,2975.7,2975.3,0.7686]
[1731120825676,1.3373,2975.7,2975.3,0.7686]
[1731120825875,2.8537701,2975.5,2975.0,0.7535]
[1731120826116,0.55,2975.4,2974.7,0.00511291]
[1731120826410,0.55,2975.2,2974.8,0.7535]
[1731120827203,0.70061473,2975.4,2975.0,0.00511291]
[1731120827511,0.70061473,2975.7,2975.3,0.00511291]
[1731120828879,0.55,2975.6,2975.3,0.00511291]
[1731120829929,0.55,2975.6,2975.1,0.7535]
[1731120830103,0.55,2975.4,2975.1,0.00511291]
[1731120830977,0.55,2975.5,2975.1,0.00511291]
[1731120831177,0.55,2975.6,2975.1,0.00511291]
[1731120831381,0.55,2975.6,2975.3,0.00511291]
[1731120837322,1.86708987,2975.6,2975.3,0.00511291]
[1731120840042,0.55,2975.6,2975.3,0.00511291]
[1731120840536,1.31708987,2975.5,2975.3,0.00511291]
[1731120848157,1.86708987,2975.7,2975.3,0.00511291]
[1731120849457,0.70061473,2975.8,2975.5,0.00511291]
[1731120849620,2.0177046,2975.9,2975.6,0.7882]
[1731120849816,1.31708987,2975.9,2975.6,0.7882]
[1731120850020,1.31708987,2975.7,2975.6,0.7882]
[1731120850525,1.31708987,2975.7,2975.5,0.00511291]
[1731120850929,1.31708987,2975.7,2975.5,0.00398073]
[1731120851133,1.31708987,2975.7,2975.3,0.79218073]
[1731120851652,1.31708987,2975.7,2975.5,0.00398073]
[1731120852637,1.31708987,2975.7,2975.3,0.79218073]
[1731120853126,1.31708987,2975.7,2975.5,0.00398073]
[1731120853652,1.31708987,2975.7,2975.3,0.79218073]
[1731120856918,2.0177046,2975.7,2975.3,0.79218073]
[1731120857432,2.8288046,2975.7,2975.3,0.79218073]
[1731120857941,2.0177046,2975.7,2975.3,0.79218073]
[1731120858755,0.70061473,2975.6,2975.3,0.79218073]
[1731120860171,2.0177046,2975.7,2975.3,0.79218073]
[1731120860342,0.70061473,2975.6,2975.3,0.79218073]
[1731120860546,0.70061473,2975.5,2975.3,0.79218073]
[1731120861450,0.70061473,2975.6,2975.3,0.79218073]
[1731120861759,0.70061473,2975.5,2975.3,0.79218073]
[1731120862560,0.70061473,2975.4,2975.3,0.79218073]
[1731120862939,0.70061473,2975.5,2975.3,0.79218073]
[1731120863273,0.70061473,2975.4,2975.3,0.79218073]
[1731120863656,0.70061473,2975.5,2975.3,0.79218073]
[1731120864573,0.70061473,2975.4,2975.3,0.79218073]
[1731120865741,0.70061473,2975.5,2975.3,0.79218073]
[1731120866676,0.70061473,2975.4,2975.3,0.79218073]
[1731120866881,0.70061473,2975.5,2975.3,0.79218073]
[1731120867053,0.70061473,2975.4,2975.3,0.79218073]
[1731120868862,0.70061473,2975.5,2975.3,0.79218073]
[1731120869187,0.70061473,2975.4,2975.3,0.79218073]
[1731120878092,0.7802,2975.3,2974.6,170.00398073]
[1731120878392,1.48160493,2974.7,2974.6,170.0]
[1731120878569,3.14818293,2974.7,2974.6,170.0]
[1731120879189,5.20650114,2974.7,2974.6,170.0]
[1731120879405,4.39372464,2974.7,2974.6,170.0]
[1731120879687,4.50138834,2974.7,2974.6,170.0]
[1731120880255,4.3932336,2974.7,2974.6,170.0]
[1731120881264,3.34330644,2974.7,2974.6,170.0]
[1731120881885,4.50022345,2974.7,2974.6,170.0]
[1731120882053,7.21771538,2974.7,2974.6,170.0]
[1731120882256,5.81631332,2974.7,2974.6,170.0]
[1731120882454,7.21671538,2974.7,2974.6,170.0]
[1731120882861,10.21671538,2974.7,2974.6,170.0]
[1731120883062,10.56439101,2974.7,2974.6,170.0]
[1731120883296,8.81631332,2974.7,2974.6,170.0]
[1731120883809,9.16031007,2974.7,2974.6,170.0]
[1731120884304,10.90605755,2974.7,2974.6,170.0]
[1731120885405,6.52613033,2974.7,2974.6,170.0]
[1731120885569,10.21239437,2974.7,2974.6,170.0]
[1731120886199,10.21841364,2974.7,2974.6,170.0]
[1731120886563,10.56173492,2974.7,2974.6,170.0]
[1731120886993,10.2177171,2974.7,2974.6,170.0]
[1731120887504,8.82233259,2974.7,2974.6,170.0]
[1731120887704,10.2177171,2974.7,2974.6,170.0]
[1731120888506,8.82233259,2974.7,2974.6,170.0]
[1731120889313,8.7108301,2974.7,2974.6,170.0]
[1731120891315,7.66541558,2974.7,2974.6,170.0]
[1731120891713,8.3619948,2974.7,2974.6,170.0]
[1731120891914,8.35597553,2974.7,2974.6,170.0]
[1731120893324,7.65939631,2974.7,2974.6,170.0]
[1731120896312,2.02521657,2974.7,2974.6,170.0]
[1731120896528,0.7696,2975.0,2974.6,170.0]
[1731120896736,0.7696,2975.3,2974.6,170.0]
[1731120897181,1.31708987,2974.9,2974.6,170.0]
[1731120897382,1.31708987,2974.9,2974.7,0.7945]
[1731120898732,1.31708987,2974.9,2974.7,4.25052212]
[1731120899632,0.7696,2975.5,2974.8,0.00398073]
[1731120899945,1.31708987,2975.0,2974.8,0.00398073]
[1731120900293,1.31708987,2975.0,2974.9,0.8023]
[1731120900593,1.31708987,2975.2,2975.0,0.00398073]
[1731120901800,1.31708987,2975.2,2975.1,0.8023]
[1731120903806,0.55,2975.1,2974.8,0.80628073]
[1731120904008,1.31708987,2974.9,2974.8,0.80628073]
[1731120904954,1.86708987,2974.9,2974.6,170.0]
[1731120905242,1.31708987,2974.7,2974.6,170.0]
[1731120906237,1.86708987,2974.7,2974.6,170.0]
[1731120907417,3.405711,2974.7,2974.6,170.0]
[1731120910537,3.7462821,2974.7,2974.6,170.0]
[1731120912648,3.405711,2974.7,2974.6,170.0]
[1731120917441,12.38,2974.9,2974.6,170.7579]
[1731120917761,12.38,2974.9,2974.6,170.72138073]
[1731120917918,15.235711,2975.3,2974.7,0.7579]
[1731120918956,0.55,2975.2,2974.7,0.7579]
[1731120919565,12.93,2975.2,2974.8,0.00398073]
[1731120920133,12.93,2975.2,2974.7,0.7579]
[1731120920331,12.93,2975.2,2974.8,0.00398073]
[1731120920538,12.93,2975.2,2974.7,0.7579]
[1731120921561,12.93,2975.2,2974.8,0.00398073]
[1731120921736,12.93,2975.2,2974.7,0.7579]
[1731120922062,2.855711,2975.0,2974.7,0.7579]
[1731120922374,0.55,2974.9,2974.7,0.7579]
[1731120925232,1.03816902,2974.9,2974.6,169.9595]
[1731120925425,3.405711,2974.7,2974.6,169.9595]
[1731120927469,1.86795426,2974.7,2974.6,169.9595]
[1731120927873,3.34393348,2974.7,2974.6,169.9595]
[1731120928077,5.50924203,2974.7,2974.6,169.9595]
[1731120929004,5.61990559,2974.7,2974.6,169.9595]
[1731120929574,7.0152901,2974.7,2974.6,169.9595]
[1731120929879,20.71324436,2974.7,2974.6,169.9595]
[1731120930238,19.31785985,2974.7,2974.6,169.9595]
[1731120930470,20.71324436,2974.7,2974.6,169.9595]
[1731120930850,19.3952901,2974.7,2974.6,169.9595]
[1731120931062,17.99990559,2974.7,2974.6,169.9595]
[1731120931372,20.71324436,2974.7,2974.6,169.9595]
[1731120933346,23.71926363,2974.7,2974.6,169.9595]
[1731120933548,24.07177276,2974.7,2974.6,169.9595]
[1731120935290,24.06575349,2974.7,2974.6,169.9595]
[1731120935600,24.07177276,2974.7,2974.6,169.9595]
[1731120935966,24.06575349,2974.7,2974.6,169.9595]
[1731120936162,22.74779923,2974.7,2974.6,169.9595]
[1731120936362,22.31785985,2974.7,2974.6,169.9595]
[1731120936588,22.39828327,2974.7,2974.6,169.9595]
[1731120936999,20.99990559,2974.7,2974.6,169.9595]
[1731120937506,22.39828327,2974.7,2974.6,169.9595]
[1731120938612,15.40403234,2974.7,2974.6,169.9595]
[1731120938815,15.29724275,2974.7,2974.6,169.9595]
[1731120941516,2.91724275,2974.7,2974.6,169.9595]
[1731120941815,1.86795426,2974.7,2974.6,169.9595]
[1731120942490,2.91724275,2974.7,2974.6,169.9595]
[1731120949131,2.0184287,2974.7,2974.6,172.79982901]
[1731120949285,13.08047444,2974.8,2974.6,172.79982901]
[1731120949486,13.08047444,2974.8,2974.7,0.8133]
[1731120949688,12.38,2974.8,2974.7,4.26932212]
[1731120953320,2.0184287,2974.9,2974.7,4.26932212]
[1731120953705,1.31795426,2974.9,2974.7,4.26932212]
[1731120960099,1.31795426,2974.9,2974.8,0.00398073]
[1731120962220,1.31795426,2974.9,2974.7,4.26932212]
[1731120962938,1.31795426,2974.9,2974.8,0.00398073]
[1731120966121,1.31795426,2975.1,2974.9,0.7794]
[1731120966842,2.0184287,2975.3,2975.2,0.00398073]
[1731120967011,1.31795426,2975.3,2975.2,0.78338073]
[1731120968342,1.31795426,2975.3,2975.2,0.7794]
[1731120969120,0.70047444,2975.4,2975.2,0.7794]
[1731120969321,1.31795426,2975.3,2975.2,0.7794]
[1731120970130,1.31795426,2975.3,2974.8,0.48718899]
[1731120970334,1.31795426,2975.3,2974.9,0.7794]
[1731120970730,1.31795426,2975.3,2975.0,0.00398073]
[1731120971042,1.31795426,2975.3,2975.2,0.00398073]
[1731120971436,1.31795426,2975.3,2975.0,0.00398073]
[1731120973355,1.31795426,2975.3,2974.9,0.7794]
[1731120974073,1.31795426,2975.3,2975.0,0.00398073]
[1731120975258,1.31795426,2975.3,2975.2,0.00398073]
[1731120976353,0.70047444,2975.4,2975.2,0.00398073]
[1731120976853,0.55,2975.4,2975.2,0.00398073]
[1731120978443,12.73095615,2975.8,2975.3,0.802]
[1731120978656,13.69795426,2975.8,2975.3,0.802]
[1731120978862,13.69795426,2975.8,2975.5,0.00398073]
[1731120979153,1.31795426,2975.6,2975.3,0.802]
[1731120979513,1.31795426,2975.6,2975.4,0.00398073]
[1731120981860,13.69795426,2975.8,2975.4,0.00398073]
[1731120982657,0.7752,2976.1,2975.7,0.8053]
[1731120982658,0.55,2976.1,2975.7,0.8053]
[1731120982839,0.55,2975.9,2975.7,0.8053]
[1731120983740,12.38,2976.3,2975.8,0.00398073]
[1731120983930,12.38,2976.3,2975.7,0.8053]
[1731120983931,12.38,2976.3,2976.0,0.00398073]
[1731120984163,2.14325426,2976.6,2976.2,0.00398073]
[1731120984366,1.31795426,2976.4,2976.2,0.00398073]
[1731120988789,1.31795426,2976.4,2976.0,0.80928073]
[1731120989261,1.31795426,2976.4,2976.2,0.00398073]
[1731120989879,1.31795426,2976.4,2976.0,0.80928073]
[1731120990670,1.31795426,2976.4,2976.2,0.00398073]
[1731120990905,1.31795426,2976.4,2976.0,0.8053]
[1731120990906,1.31795426,2976.4,2976.0,0.80928073]
[1731120991069,1.31795426,2976.1,2976.0,0.80928073]
[1731120991268,1.86795426,2976.3,2976.0,0.80928073]
[1731120992595,0.8253,2976.6,2976.2,0.00398073]
[1731120992911,0.55,2976.9,2976.4,0.80928073]
[1731120993111,1.86795426,2976.9,2976.4,0.80928073]
[1731120993612,2.43889769,2976.9,2976.4,0.80928073]
[1731120994271,1.31795426,2976.9,2976.6,0.00398073]
[1731120994475,1.31795426,2976.9,2975.4,0.01]
[1731120994476,1.31795426,2976.9,2976.2,0.80928073]
[1731120994672,1.31795426,2976.7,2976.2,0.80928073]
[1731120995400,1.31795426,2976.9,2976.2,0.80928073]
[1731120995890,0.55,2976.8,2976.2,0.80928073]
[1731120996213,0.55,2976.8,2976.5,0.7995]
[1731120998130,1.31795426,2976.7,2976.5,0.7995]
[1731120999637,1.66871226,2976.7,2976.3,0.7995]
[1731120999925,1.66871226,2976.7,2976.4,0.00398073]
[1731121001636,1.31795426,2976.5,2976.2,0.00398073]
[1731121001991,1.31795426,2976.3,2976.2,0.00398073]
[1731121002626,1.86795426,2976.3,2975.8,0.00398073]
[1731121002814,1.31795426,2976.1,2975.8,0.00398073]
[1731121004133,0.55,2976.4,2976.2,0.00398073]
[1731121004362,1.86795426,2976.4,2976.2,0.00398073]
[1731121004714,1.86795426,2976.4,2976.1,0.7557]
[1731121005717,2.13245969,2976.4,2975.8,0.75968073]
[1731121005919,0.55,2976.1,2975.8,0.75968073]
[1731121006115,0.69921267,2976.6,2974.5,1.31795426]
[1731121006116,1.04997067,2976.7,2976.2,0.75968073]
[1731121006367,1.31795426,2976.6,2976.2,0.75968073]
[1731121007330,1.31795426,2976.4,2976.2,0.75968073]
[1731121011359,1.31795426,2976.4,2976.2,0.00398073]
[1731121011660,1.31795426,2976.4,2976.0,0.7557]
[1731121011863,0.55,2976.1,2975.9,0.00398073]
[1731121012462,0.55,2976.1,2975.7,0.7557]
[1731121012968,1.3271,2976.1,2975.8,0.00398073]
[1731121014287,1.24921267,2976.1,2975.8,0.00398073]
[1731121014485,0.55,2976.1,2975.8,0.00398073]
[1731121014821,0.35082093,2976.0,2975.8,0.00398073]
[1731121021416,0.35082093,2976.0,2975.9,0.8242]
[1731121025737,0.35082093,2976.0,2975.9,2.15215426]
[1731121026043,0.69921267,2977.0,2976.0,0.8242]
[1731121026342,0.71539267,2977.1,2976.0,0.8242]
[1731121027135,0.69921267,2977.0,2976.0,0.8242]
[1731121027439,0.69921267,2977.0,2976.7,0.00398073]
[1731121027633,1.00742926,2977.0,2976.7,0.00398073]
[1731121028438,0.69921267,2977.0,2976.9,0.00398073]
[1731121030158,0.71539267,2977.1,2976.9,0.00398073]
[1731121031901,0.01618,2977.1,2976.9,0.82818073]
[1731121038814,0.01618,2977.1,2977.0,0.00398073]
[1731121041909,0.78998,2977.1,2977.0,0.00398073]
[1731121042218,1.33998,2977.1,2977.0,0.00398073]
[1731121043495,0.01618,2977.1,2977.0,0.75458073]
[1731121043829,0.01618,2977.1,2977.0,0.00398073]
[1731121044496,0.56618,2977.1,2977.0,0.00398073]
[1731121044876,0.01618,2977.1,2977.0,0.00398073]
[1731121048752,0.78998,2977.1,2977.0,0.00398073]
[1731121048905,1.33998,2977.1,2977.0,0.00398073]
[1731121049106,0.55,2977.0,2976.7,0.00398073]
[1731121050055,0.55,2977.0,2976.9,0.00398073]
[1731121050734,0.55,2977.0,2976.7,0.00398073]
[1731121052828,0.55,2977.0,2976.9,0.00398073]
[1731121053429,0.01618,2977.1,2976.9,0.00398073]
[1731121055453,0.7606,2977.0,2976.9,0.00398073]
[1731121055616,1.3106,2977.0,2976.9,0.00398073]
[1731121057621,1.3106,2977.0,2976.4,0.7886]
[1731121057622,0.55,2976.9,2976.8,0.00398073]
[1731121057874,0.55,2976.9,2976.5,0.00398073]
[1731121058329,2.15126903,2976.9,2976.5,0.00398073]
[1731121058534,1.3106,2976.6,2976.3,0.00398073]
[1731121059059,0.55,2976.4,2975.8,0.00398073]
[1731121059222,0.55,2976.2,2975.8,0.00398073]
[1731121059618,12.38,2976.4,2976.2,0.00398073]
[1731121060653,1.52325484,2976.8,2976.7,0.00398073]
[1731121060843,0.55,2977.0,2976.7,0.00398073]
[1731121061924,0.01618,2977.1,2976.9,0.00398073]
[1731121069502,0.55,2977.0,2976.7,0.00398073]
[1731121070792,0.71553484,2977.1,2976.9,0.00398073]
[1731121071109,0.01618,2977.1,2976.9,1.26442241]
[1731121071617,0.01618,2977.1,2976.9,0.82538073]
[1731121081448,0.01618,2977.1,2977.0,0.06717813]
[1731121082207,0.01618,2977.1,2977.0,0.87157813]
[1731121082818,0.01618,2977.1,2977.0,0.8044]
[1731121083036,0.01618,2977.1,2977.0,0.00398073]
[1731121090535,0.71553484,2977.1,2977.0,0.00398073]
[1731121093546,0.19263671,2977.1,2977.0,0.00398073]
[1731121094581,0.89199155,2977.1,2977.0,0.00398073]
[1731121095247,2.58726897,2977.1,2977.0,0.00398073]
[1731121102156,1.53823671,2977.1,2977.0,0.00398073]
[1731121104808,1.53823671,2977.1,2977.0,0.00398073]
[1731121105360,2.58726897,2977.1,2977.0,0.00398073]
[1731121106272,2.70096279,2977.1,2977.0,0.00398073]
[1731121106699,4.09967247,2977.1,2977.0,0.00398073]
[1731121107182,1.79729014,2977.1,2977.0,0.00398073]
[1731121107584,1.07083343,2977.1,2977.0,0.00398073]
[1731121107799,0.01618,2977.1,2977.0,0.00398073]
[1731121107976,0.7192968,2977.1,2977.0,0.00398073]
[1731121108602,0.01618,2977.1,2977.0,0.00398073]
[1731121116032,0.01618,2977.1,2977.0,0.80878073]
[1731121128918,0.01618,2977.1,2977.0,0.81878073]
[1731121129076,0.01618,2977.1,2977.0,0.80878073]
[1731121132589,0.01618,2977.1,2977.0,0.00398073]
[1731121141237,0.7603,2977.0,2976.8,0.00398073]
[1731121143844,0.01618,2977.1,2977.0,0.00398073]
[1731121145813,0.01618,2977.1,2977.0,0.07115958]
[1731121147930,0.01618,2977.1,2977.0,0.00398073]
[1731121148266,0.01618,2977.1,2976.7,0.8093]
[1731121148428,0.01618,2977.1,2976.9,0.00398073]
[1731121148630,0.28038803,2977.1,2976.9,0.00398073]
[1731121150342,0.01618,2977.1,2976.9,0.00398073]
[1731121150921,0.7192968,2977.1,2976.9,0.00398073]
[1731121152037,0.7192968,2977.1,2976.7,0.00398073]
[1731121152239,0.7603,2977.0,2976.7,0.00398073]
[1731121152758,0.7192968,2977.1,2976.8,0.00398073]
[1731121153457,0.7192968,2977.1,2977.0,0.00398073]
[1731121156761,0.7192968,2977.1,2976.8,0.00398073]
[1731121156965,0.01618,2977.1,2976.8,0.00398073]
[1731121157263,0.7192968,2977.1,2977.0,0.00398073]
[1731121157563,0.7192968,2977.1,2976.7,0.00398073]
[1731121157761,0.7192968,2977.1,2977.0,0.00398073]
[1731121157962,0.7192968,2977.1,2976.7,0.00398073]
[1731121158323,0.01618,2977.1,2977.0,0.00398073]
[1731121158521,0.7192968,2977.1,2976.7,0.00398073]
[1731121159073,0.55,2976.8,2976.5,0.00398073]
[1731121159241,1.2531168,2976.8,2976.5,0.00398073]
[1731121159721,0.8148,2976.7,2976.3,0.00398073]
[1731121159922,1.3648,2976.7,2976.4,0.00398073]
[1731121160328,0.8148,2976.7,2976.4,0.00398073]
[1731121161171,1.12705722,2976.7,2976.4,0.00398073]
[1731121163061,1.83017402,2976.7,2976.4,0.00398073]
[1731121163260,0.55,2976.6,2976.4,0.00398073]
[1731121163503,0.55,2976.6,2976.2,0.00398073]
[1731121164172,0.826,2976.5,2976.2,0.00398073]
[1731121164398,0.55,2976.4,2976.2,0.00398073]
[1731121164566,0.7426,2976.4,2976.2,0.00398073]
[1731121165676,0.7426,2976.4,2976.0,0.00398073]
[1731121166013,0.55,2976.2,2976.0,0.00398073]
[1731121174016,0.55,2976.2,2975.8,0.00398073]
[1731121174205,2.07308914,2976.1,2975.8,0.00398073]
[1731121174621,0.7566,2976.1,2975.8,0.00398073]
[1731121176486,0.55,2976.3,2975.8,0.00398073]
[1731121176726,0.55,2976.3,2975.8,0.82048073]
[1731121177429,0.55,2976.3,2976.1,0.00398073]
[1731121181730,0.55,2976.5,2976.1,0.00398073]
[1731121182028,0.55,2976.3,2976.1,0.00398073]
[1731121193258,0.7031168,2976.7,2976.5,0.00398073]
[1731121193412,12.38,2976.8,2976.5,0.00398073]
[1731121193838,12.38,2976.8,2976.3,0.00398073]
[1731121194030,0.8293,2976.6,2976.3,0.00398073]
[1731121194443,1.31648914,2976.5,2976.1,0.00398073]
[1731121194648,0.55,2976.4,2976.1,0.00398073]
[1731121194970,0.8293,2976.6,2976.3,0.00398073]
[1731121195270,1.3793,2976.6,2976.5,0.00398073]
[1731121195427,3.76495519,2976.6,2976.5,0.00398073]
[1731121195829,2.23253839,2976.6,2976.5,0.00398073]
[1731121196362,0.55,2976.6,2976.5,0.00398073]
[1731121196527,0.55,2976.6,2976.3,0.79748073]
[1731121196715,0.55,2976.6,2976.5,0.00398073]
[1731121198640,1.2531168,2976.6,2976.5,0.00398073]
[1731121199337,1.2531168,2976.6,2976.3,0.00398073]
[1731121199565,0.55,2976.5,2976.3,0.00398073]
[1731121200139,0.55,2976.5,2976.1,0.00398073]
[1731121200140,0.55,2976.3,2976.1,0.00398073]
[1731121200367,1.2531168,2976.3,2976.1,0.00398073]
[1731121200782,0.7031168,2976.2,2976.1,0.00398073]
[1731121200941,1.2531168,2976.2,2976.1,0.00398073]
[1731121202250,0.55,2976.2,2976.1,0.00398073]
[1731121202861,0.55,2976.2,2975.9,0.00398073]
[1731121203066,0.70361575,2976.1,2975.9,0.00398073]
[1731121204883,1.25361575,2976.2,2975.9,0.00398073]
[1731121205962,0.70361575,2976.2,2976.1,0.81868073]
[1731121206205,0.70401469,2976.2,2976.1,0.81868073]
[1731121206606,0.70401469,2976.3,2976.1,0.81868073]
[1731121207330,0.70401469,2976.2,2976.1,0.81868073]
[1731121207468,0.70401469,2976.3,2976.1,0.00398073]
[1731121208272,0.70401469,2976.4,2976.1,0.00398073]
[1731121208469,0.70401469,2976.4,2976.0,0.8147]
[1731121208470,0.70401469,2976.4,2976.3,0.00398073]
[1731121209097,13.43465537,2976.5,2976.3,0.00398073]
[1731121209301,1.05465537,2976.4,2976.3,0.00398073]
[1731121209817,0.8302,2976.3,2976.1,0.00398073]
[1731121210046,1.05633122,2976.2,2976.1,0.00398073]
[1731121210202,1.60633122,2976.2,2976.1,0.00398073]
[1731121210397,3.11338016,2976.2,2975.9,0.00398073]
[1731121210713,0.8302,2975.9,2975.4,0.00398073]
[1731121211041,0.70430387,2975.7,2975.3,0.8147]
[1731121211242,0.70430387,2975.6,2975.3,0.8147]
[1731121211453,0.70430387,2975.7,2975.5,0.00398073]
[1731121211596,0.70430387,2975.7,2975.3,0.8147]
[1731121211803,0.70430387,2975.6,2975.4,0.00398073]
[1731121212543,0.70430387,2975.7,2975.6,0.00398073]
[1731121214297,0.70430387,2975.8,2975.6,0.00398073]
[1731121216403,0.70430387,2975.9,2975.6,0.00398073]
[1731121216648,0.70430387,2975.8,2975.6,0.00398073]
[1731121218675,0.70430387,2975.9,2975.6,0.00398073]
[1731121221781,0.70430387,2975.8,2975.6,0.00398073]
[1731121222875,0.70430387,2975.9,2975.6,0.00398073]
[1731121224347,1.28991972,2975.9,2975.6,0.00398073]
[1731121225137,1.28991972,2975.9,2975.3,0.8147]
[1731121225344,1.28991972,2975.9,2975.7,0.00398073]
[1731121226344,0.70430387,2975.9,2975.7,0.00398073]
[1731121226898,0.55,2976.0,2975.7,0.82208073]
[1731121228015,0.55,2976.1,2975.7,0.82208073]
[1731121234965,0.55,2976.3,2975.9,0.00398073]
[1731121235309,0.54831984,2976.3,2975.9,0.00398073]
[1731121235505,1.25142467,2976.3,2975.9,0.00398073]
[1731121236758,0.70310483,2976.5,2976.3,0.00398073]
[1731121236958,0.70310483,2976.6,2976.3,0.00398073]
[1731121237259,0.70310483,2976.7,2976.3,0.00398073]
[1731121237629,1.05465725,2976.8,2976.3,0.00398073]
[1731121237630,0.70310483,2976.6,2976.3,0.00398073]
[1731121237808,0.70310483,2976.7,2976.3,0.00398073]
[1731121238014,0.55,2976.6,2976.3,0.00398073]
[1731121239550,0.55,2976.7,2976.3,0.00398073]
[1731121239723,1.25310483,2976.7,2976.3,0.00398073]
[1731121240698,2.56959397,2976.7,2976.3,0.00398073]
[1731121240910,0.7567,2976.6,2976.3,0.00398073]
[1731121241396,1.45980483,2976.6,2976.3,0.00398073]
[1731121243178,0.7567,2976.6,2976.3,0.00398073]
[1731121243379,1.25310483,2976.7,2976.3,0.00398073]
[1731121244783,2.56959397,2976.7,2976.3,0.00398073]
[1731121246881,0.70310483,2976.6,2976.3,0.00398073]
[1731121247283,2.56959397,2976.7,2976.3,0.00398073]
[1731121251026,0.55,2976.7,2976.3,0.00398073]
[1731121251378,1.25310483,2976.7,2976.3,0.00398073]
[1731121254225,0.55,2976.7,2976.3,0.00398073]
[1731121259735,13.08310483,2976.9,2976.6,0.8016]
[1731121259938,12.38,2976.9,2976.6,0.8016]
[1731121262675,12.38,2976.9,2976.8,0.00398073]
[1731121263119,0.01618,2977.1,2976.8,0.00398073]
[1731121263314,0.56618,2977.1,2976.9,0.8058]
[1731121263515,0.01618,2977.1,2976.9,0.8058]
[1731121263831,0.01618,2977.1,2977.0,0.00398073]
[1731121264024,0.01618,2977.1,2977.0,0.80978073]
[1731121266157,0.01618,2977.1,2977.0,1.02240772]
[1731121267972,0.01618,2977.1,2977.0,1.09957389]
[1731121269169,0.01618,2977.1,2977.0,5.41606303]
[1731121269435,12.38,2979.2,2978.8,0.00398073]
[1731121269666,2.33159648,2979.6,2978.5,0.8058]
[1731121269667,14.62187595,2979.6,2979.0,0.00398073]
[1731121269868,1.31648914,2979.4,2978.8,0.00398073]
[1731121270067,0.7874,2979.3,2978.8,0.00398073]
[1731121270973,1.31648914,2979.2,2978.8,0.00398073]
[1731121271271,0.55,2979.2,2978.8,0.00398073]
[1731121271478,0.81538891,2979.2,2978.8,0.00398073]
[1731121272079,13.30538681,2979.6,2979.2,0.00398073]
[1731121272230,14.62187595,2979.6,2979.2,0.00398073]
[1731121272773,12.51798681,2979.6,2979.2,0.00398073]
[1731121273376,12.51798681,2979.6,2979.5,0.00398073]
[1731121273678,0.13798681,2979.6,2979.5,0.00398073]
[1731121274400,0.13798681,2979.6,2979.5,0.80978073]
[1731121277261,0.13798681,2979.6,2979.4,0.00398073]
[1731121282764,0.13798681,2979.6,2979.5,0.7982]
[1731121288506,0.13798681,2979.6,2979.5,0.86531657]
[1731121288718,0.13798681,2979.6,2979.5,0.7982]
[1731121292401,0.13798681,2979.6,2979.5,0.86531159]
[1731121292589,0.13798681,2979.6,2979.5,0.7982]
[1731121295238,0.13127439,2979.6,2979.5,0.7982]
[1731121299361,0.13127439,2979.6,2979.5,0.86531215]
[1731121299724,0.13127439,2979.6,2979.5,0.7982]
[1731121303941,0.13127439,2979.6,2979.5,0.8082]
[1731121304538,0.13127439,2979.6,2979.5,0.7982]
[1731121305937,0.13127439,2979.6,2979.5,1.01167902]
[1731121306980,0.13127439,2979.6,2979.5,0.00398073]
[1731121316701,0.93437439,2979.6,2979.5,0.00398073]
[1731121317077,0.13127439,2979.6,2979.5,0.00398073]
[1731121319689,0.13127439,2979.6,2979.5,0.76168073]
[1731121322437,0.13127439,2979.6,2979.5,6.62637089]
[1731121322582,0.13127439,2979.6,2979.5,7.28900798]
[1731121329429,0.13127439,2979.6,2979.5,5.7566767]
[1731121331704,0.13127439,2979.6,2979.5,5.7466767]
[1731121331911,0.13127439,2979.6,2979.5,0.67661782]
[1731121332365,0.13127439,2979.6,2979.5,0.66661782]
[1731121332521,0.13127439,2979.6,2979.5,0.00398073]
[1731121341159,0.13127439,2979.6,2979.5,1.31633961]
[1731121341346,0.13127439,2979.6,2979.5,0.00398073]